Cogmind - Beta 12 X1 @@@ ROGUE MODE // 2022.09.01 @ 16:02:42 Player: btmk16 Result: Self-destructed Performance ------------- Evolutions (1) 500 Regions Visited (2) 400 Robots Destroyed (1) 5 Value Destroyed (22) 22 Prototype IDs (0) 0 Alien Tech Used (0) 0 Bonus (200) 200 TOTAL SCORE: 1127 Bonus ------- Pacifist 200 Cogmind --------- Core Integrity 385/400 Matter 192/300 Energy 99/100 System Corruption 0% Temperature Cool (0) Movement Core (50) Location -9/Materials Parts ------- > --- POWER (1) -------- (None) > --- PROPULSION (4) --- Light Treads Light Treads > --- UTILITY (2) ------ (None) > --- WEAPON (2) ------- Small Laser > --- INVENTORY (5) ---- Hardened Light Armor Plating Hardened Light Armor Plating Hardened Light Armor Plating Hardened Light Armor Plating Rocket Launcher Peak State ------------ > --- POWER ------------ (None) > --- PROPULSION ------- Light Treads Light Treads > --- UTILITY ---------- (None) > --- WEAPON ----------- Small Laser Assault Rifle > --- INVENTORY -------- Hardened Light Armor Plating Hardened Light Armor Plating Hardened Light Armor Plating Hardened Light Armor Plating EMP Blaster [Rating: 5] Favorites ----------- Power None Propulsion Light Treads Treads Light Treads Utility None Weapon Small Laser Energy Gun Small Laser Ballistic Gun Assault Rifle Launcher EMP Blaster Build | -11 -10 -9 ------- Run | Scr Mat Mat Slots Evolved 2 | . . 2 Power . | . . . Propulsion 2 | . . 2 Utility . | . . . Weapon . | . . . Parts Attached 5 | 3 1 1 Power . | . . . Engine . | . . . Core . | . . . Reactor . | . . . Propulsion 2 | 2 . . Treads 2 | 2 . . Leg . | . . . Wheel . | . . . Hover . | . . . Flight . | . . . Utility . | . . . Device . | . . . Storage . | . . . Processor . | . . . Hackware . | . . . Protection . | . . . Artifact . | . . . Weapon 3 | 1 1 1 Energy Gun 1 | . 1 . Energy Cannon . | . . . Ballistic Gun 1 | 1 . . Ballistic Cannon . | . . . Launcher 1 | . . 1 Special Weapon . | . . . Impact Weapon . | . . . Slashing Weapon . | . . . Piercing Weapon . | . . . Special Melee Weapon . | . . . Unidentified Prototypes . | . . . Parts Lost . | . . . Power . | . . . Propulsion . | . . . Utility . | . . . Weapon . | . . . Highest Loss Streak . | . . . To Critical Strikes . | . . . Average Slot Usage (%) 45 | . 54 38 Treads 24 | . 28 22 Energy Gun 11 | . 11 11 Ballistic Gun 9 | . 14 5 Naked Turns . | . . . Heaviest Build 3 | 2 3 3 Greatest Support 3 | 3 3 3 Greatest Overweight (x) . | . . . Average Overweight (x) . | . . . Largest Inventory Capacity 5 | 5 5 5 Average Capacity 5 | 5 5 5 Most Carried 5 | 5 5 5 Average Carried 4 | 3 4 4 Final Capacity 5 | 5 5 5 Final Carried 5 | 5 5 5 Class Distribution -------------------- 100% | Mutant Dominant Class ---------------- Mutant | -10/Materials Mutant | -9/Materials Resources | -11 -10 -9 ----------- Run | Scr Mat Mat Matter Collected 152 | 152 . . Remotely . | . . . Salvage Created 43 | . . 43 Parts 2 | . . 2 Haulers Intercepted 1 | . . 1 Recyclers Shooed . | . . . Parts Field Recycled . | . . . Retrieved Matter . | . . . Parts Self-Destructed . | . . . Prevented . | . . . Kills | -11 -10 -9 ------- Run | Scr Mat Mat Combat Hostiles Destroyed . | . . . Classes Destroyed 1 | . . 1 Hauler 1 | . . 1 Best Kill Streak 1 | . . 1 Combat Bots Only . | . . . Max Kills in Single Turn 1 | . . 1 Gunslinging . | . . . Exploded . | . . . Melee . | . . . Uniques/NPCs Destroyed . | . . . Combat | -11 -10 -9 -------- Run | Scr Mat Mat Damage Taken 132 | . 35 97 Core 15 | . . 15 Absorbed by Shields . | . . . Core Remaining (%) 100 | 100 100 . Volleys Fired 3 | . . 3 Largest 2 | . . 2 Hottest 60 | . . 60 Shots Fired 5 | . . 5 Gun 4 | . . 4 Cannon . | . . . Launcher 1 | . . 1 Special . | . . . Kinetic 2 | . . 2 Thermal 2 | . . 2 Explosive . | . . . Electromagnetic 1 | . . 1 Robot Hit Streak 5 | . . 5 Robot Miss Streak . | . . . Penetration Max . | . . . Secondary Targets . | . . . Shots Hit Robots 5 | . . 5 Core Hits 2 | . . 2 Critical Kills . | . . . Critical Parts Destroyed . | . . . Critical Strikes . | . . . Melee Attacks . | . . . Impact . | . . . Slashing . | . . . Piercing . | . . . Sneak Attacks . | . . . Combat Hostiles . | . . . Follow-up Attacks . | . . . Damage Inflicted 114 | . . 114 Guns 46 | . . 46 Cannons . | . . . Explosions 68 | . . 68 Melee . | . . . Ramming . | . . . Kinetic 25 | . . 25 Thermal 21 | . . 21 Explosive . | . . . Electromagnetic 68 | . . 68 Impact . | . . . Slashing . | . . . Piercing . | . . . Highest Corruption . | . . . Average Corruption . | . . . Corruption Purged . | . . . Corruption Blocked . | . . . Overload Shots . | . . . Overflow Damage . | . . . Projectiles . | . . . Explosions . | . . . Melee . | . . . Knockbacks . | . . . Impact . | . . . Kinetic . | . . . Secondary . | . . . Self-Inflicted Damage . | . . . Shots . | . . . Rammed . | . . . Targets Rammed . | . . . Kicked . | . . . Crushed . | . . . Highest Temperature . | . . . Average Temperature . | . . . Received Heat Transfer 48 | . 18 30 Siege Activations . | . . . Robots Corrupted . | . . . Combat Hostiles . | . . . Parts Fried . | . . . Impact Corruptions . | . . . Robots Melted . | . . . Combat Hostiles . | . . . Parts Melted . | . . . Heat Transferred 50 | . . 50 Parts Sabotaged . | . . . Parts Stolen . | . . . Parts Stripped . | . . . Power Chain Reactions . | . . . Missiles Intercepted . | . . . Alert | -11 -10 -9 ------- Run | Scr Mat Mat Peak Influence 82 | . . 82 Initial . | . . . Average 15 | . . 38 Maximum Alert Level . | . . . Low Security (%) 100 | 100 100 100 Level 1 . | . . . Level 2 . | . . . Level 3 . | . . . Level 4 . | . . . Level 5 . | . . . High Security . | . . . Max Security . | . . . Squads Dispatched 1 | . . 1 Investigation . | . . . Extermination . | . . . Reinforcement 1 | . . 1 Assault . | . . . Garrison . | . . . Intercept . | . . . Searches Triggered . | . . . Construction Impeded . | . . . Haulers Reinforced . | . . . Active Scanning Responses . | . . . Cargo Convoy Interrupts . | . . . Stealth | -11 -10 -9 --------- Run | Scr Mat Mat Distress Signals 2 | . . 2 Communications Jammed . | . . . Distress Signals . | . . . Times Spotted 8 | . 1 7 Peak Tracking Total 5 | . 1 5 Tactical Retreats 1 | . . 1 Traps | -11 -10 -9 ------- Run | Scr Mat Mat Traps Triggered . | . . . Indirectly . | . . . Trap Hack Attempts . | . . . Triggered . | . . . Disarmed . | . . . Reprogrammed . | . . . Reused . | . . . Traps Extracted . | . . . Installed . | . . . Triggered . | . . . Machines | -11 -10 -9 ---------- Run | Scr Mat Mat Machines Disabled 2 | . . 2 Max in Single Turn 2 | . . 2 Machines Sabotaged . | . . . Garrisons Compromised . | . . . Overloaded Fab Kills . | . . . Hacking | -11 -10 -9 --------- Run | Scr Mat Mat Machines Accessed 1 | . 1 . Terminals 1 | . 1 . Fabricators . | . . . Repair Stations . | . . . Recycling Units . | . . . Scanalyzers . | . . . Garrison Access . | . . . Total Hacks 3 | . 3 . Successful 1 | . 1 . Failed 2 | . 2 . Catastrophic . | . . . Database Lockouts . | . . . Manual 1 | . 1 . Terminals 3 | . 3 . Fabricators . | . . . Repair Stations . | . . . Recycling Units . | . . . Scanalyzers . | . . . Garrison Access . | . . . Terminal Hacks 1 | . 1 . Emergency Access Points 1 | . 1 . Fabricator Hacks . | . . . Repair Station Hacks . | . . . Recycling Unit Hacks . | . . . Scanalyzer . | . . . Garrison Access Hacks . | . . . Unauthorized Hacks . | . . . Terminals . | . . . Fabricators . | . . . Repair Stations . | . . . Recycling Units . | . . . Scanalyzers . | . . . Garrison Access . | . . . Data Cores Recovered . | . . . Used . | . . . Hacking Detections 1 | . 1 . Full Trace Events . | . . . Feedback Events . | . . . Feedback Blocked . | . . . Robot Schematics Acquired . | . . . Robots Built . | . . . Authchips . | . . . Time . | . . . Total Robot Build Rating . | . . . Part Schematics Acquired . | . . . Parts Built . | . . . Authchips . | . . . Time . | . . . Total Part Build Rating . | . . . Parts Repaired . | . . . Time . | . . . Parts Recycled . | . . . Recycled Matter . | . . . Retrieved Matter . | . . . Retrieved Components . | . . . Parts Scanalyzed . | . . . Part Schematics Acquired . | . . . Parts Damaged . | . . . Bothacking | -11 -10 -9 ------------ Run | Scr Mat Mat Used RIF Installer . | . . . Robots Hacked . | . . . Non-combat . | . . . Combat . | . . . Robot Hacks Applied . | . . . Relay Couplers Released . | . . . Fabnet Peak Effective % . | . . . Robots Rewired . | . . . Allies Hacked . | . . . Hacks Repelled . | . . . Allies | -11 -10 -9 -------- Run | Scr Mat Mat Total Allies . | . . . Largest Group . | . . . Highest-Rated Group . | . . . Highest-Rated Ally . | . . . Total Orders . | . . . Ally Attacks . | . . . Total Damage . | . . . Kills . | . . . Allies Corrupted . | . . . Allies Melted . | . . . Intel | -11 -10 -9 ------- Run | Scr Mat Mat Robot Analysis Total . | . . . Derelict Logs Recovered . | . . . Drone Launches . | . . . Drone Recoveries . | . . . Exploration | -11 -10 -9 ------------- Run | Scr Mat Mat Turns Passed 129 | 28 48 53 Spaces Moved 193 | 37 74 82 Core 193 | 37 74 82 Treads . | . . . Legs . | . . . Wheels . | . . . Hover . | . . . Flight . | . . . Fastest Speed 50 | 50 50 50 Average Speed 50 | 50 50 50 Slowest Speed 50 | 50 50 50 Overloaded Moves . | . . . Propulsion Burnouts . | . . . Robots Hopped . | . . . Cave-ins Triggered . | . . . Exploration Rate (%) 12 | 3 19 15 Regions Visited 2 Branch Regions . Pre-discovered Areas . | . . . Known Exits Taken . | . . . Unknown Exits Taken 2 | 1 1 . Scrap Searched . | . . . Spaces Dug . | . . . Terrain Destroyed . | . . . Melee . | . . . Projectile . | . . . AOE . | . . . Terrain Rammed . | . . . Walls Destroyed . | . . . Machines Disabled . | . . . Actions | -11 -10 -9 --------- Run | Scr Mat Mat Total 219 | 44 86 89 Wait . | . . . Move 191 | 36 73 82 Hop . | . . . Pick Up 12 | 5 6 1 Fast Attach 4 | 3 1 . Attach . | . . . Detach . | . . . Swap 1 | . . 1 Drop 8 | . 6 2 Fire 3 | . . 3 Melee . | . . . Ram . | . . . Kick . | . . . Crush . | . . . Escape Stasis . | . . . Rewire . | . . . Trap . | . . . Miscellaneous . | . . . Route ------- -11/Scrapyard -10/Materials (discovered 2 exits: [*Mat] / [*Min]) -9/Materials History --------- Turn | Location | Event 12 | -11/Scrapyard | Discovered new exit (range 14) 29 | -11/Scrapyard | Entered Materials 43 | -10/Materials | Discovered new exit (range 14) 61 | -10/Materials | Discovered new exit (range 5) 77 | -10/Materials | Entered another Materials area 77 | -9/Materials | Evolved 2 slots: Propulsion x2 130 | -9/Materials | Self-destructed Last Messages --------------- 00074_ Acquired Hrd. Light Armor Plating. PARAMETERS=PROPULSION+2 LOCATION=UNKNOWN GOAL=ESCAPE 00093_ O-16 Technician sends out distress signal. 00093_ O-16 Technician: "IFF HANDSHAKE FAILED. SECURING TERMINAL." 00093_ O-16 Technician uses terminal to summon reinforcements. 00093_ ALERT: Hostiles spotted, dispatching reinforcements to Terminal M007. 00093_ O-16 Technician locks terminal. 00094_ T-07 Excavator is excavating. 00097_ A-02 Transporter destroyed. 00102_ Terminal disabled. 00102_ Door malfunctions. 00102_ Processing Tank disabled. 00104_ Dropped EMP Blaster. 00105_ Dropped Assault Rifle. 00106_ Acquired Rocket Launcher. 00111_ T-07 Excavator is excavating. 00111_ W-16 Scout sends out distress signal. Map ----- +----------------------------------------------------+ | ### #????????????????????????????????????? | | #????????????????????????????????????? | | # ### ##???????????????????????????????????? | | # #?# """ ""#??????????????????????????????????? | | # #?# """ T"#??????????????????????????????????? | | # #?# """ ""???????????????????????????????????? | | #+### """ #????????????????????????????????????? | | # #????????????????????????????????????? | | [] # #????????????????????????????????????? | | = !# #????????????????????????????????????? | | ]%]+ #????????????????????????????????????? | | [ [# #????????????????????????????????????? | | # !!! +????????????????????????????????????? | | ! # !!! #????????????????????????????????????? | | + !! #????????????????????????????????????? | | ######"Y"# ####?????+#??????????????????????????? | | ?????#"""# # #????# #??????????????????????????? | | ?????##### #????# #??????????????????????????? | | ??######?# # ##????# #??????????????????????????? | | ### ### ######### #??????????????????????????? | | #??????????????????????????? | | #######????????????????????? | | ### ### ######### # #????????????????????? | | #### ####+######??# # """ #????????????????????? | | # # #??# + "T" #????????????????????? | | + + " """ #??# # @ #????????????????????? | | # # T """ + #######????????????????????? | | # # " """ ####+##??????????????????????????? | | ?#### #????????????????????????????????? | | ????# #????????????????????????????????? | | ?????# [ #????????????????????????????????? | | ?????# ! #????????????????????????????????? | | ??????###########????????????????????????????????? | | ?????????????????????????????????????????????????? | | ?????????????????????????????????????????????????? | | ?????????????????????????????????????????????????? | | | | | | | | | | | | | | | | | | | | | | | | | | | | | +----------------------------------------------------+ Best States ------------- Heat Dissipation 28 Energy Generation 5 Energy Capacity 100 Matter Stores 222 Matter Capacity 300 Sight Range 16 Terrain Scan Density 10 Evasion (%) 50 Recoil Reduction 2 Item Schematics ----------------- None Robot Schematics ------------------ None Fabricated ------------ Nothing Alien Tech Used ----------------- None Achievements -------------- None Challenges ------------ None Game ------ Seed BeamGuidedVibroblade Manual? 0 Play Time 00:03:43 Cumulative 476.8 hours Start 2022.09.01 @ 15:35:29 End 2022.09.01 @ 16:02:42 Sessions 1 Manual Loads 0 Difficulty Rogue Special Mode None Game No. 545 Rogue 544 Adventurer 0 Explorer 1 Win Type - Total 15 Types 10/0/2/3/0/0/0/0/0 Lore% 80 Gallery% 88 Achievement% 70 Wizard Run 0 Options --------- ASCII 0 Keyboard 1 Movement Vi Keybinds 0 Fullscreen 1 Font 18/SmallcapsGlow Map View 76x50 Tactical HUD 1 Map Filters NONE Filters NONE Steam 1 RUN: 83748a70-2184-487c-a8dd-19be8a134a30